bitfinex-derivatives/quotes_SOLF0:USTF0_20250425
["timestamp","ask_amount","ask_price","bid_price","bid_amount"]
[1745579725079,5.60004058,154.33,154.3,6.4787]
[1745579726276,5.60004058,154.35,154.31,5.60004058]
[1745579726478,24.88,154.36,154.29,5.60004058]
[1745579726783,5.60004058,154.34,154.31,6.478]
[1745579727081,5.60004058,154.33,154.29,5.60004058]
[1745579727479,5.60004058,154.35,154.3,5.60004058]
[1745579727788,5.60004058,154.33,154.28,5.60004058]
[1745579727978,5.60004058,154.33,154.31,6.4782]
[1745579728683,24.88,154.36,154.29,5.60004058]
[1745579728882,2.0155,154.38,154.32,5.60004058]
[1745579729083,5.60004058,154.37,154.32,5.60004058]
[1745579729377,24.88,154.42,154.34,5.60004058]
[1745579729584,5.60004058,154.4,154.36,5.60004058]
[1745579729787,5.60004058,154.38,154.34,5.60004058]
[1745579730082,5.60004058,154.39,154.34,5.60004058]
[1745579730281,5.60004058,154.39,154.35,5.60004058]
[1745579730580,5.60004058,154.39,154.37,6.4757]
[1745579730779,5.60004058,154.39,154.35,5.60004058]
[1745579730979,5.60004058,154.39,154.36,6.4761]
[1745579731476,6.4749,154.4,154.36,6.4761]
[1745579732185,6.4749,154.4,154.37,6.4758]
[1745579732677,10.63688695,154.43,154.35,33.60428695]
[1745579733481,6.4744,154.41,154.35,33.60428695]
[1745579733884,6.4744,154.41,154.37,6.4756]
[1745579734084,6.4744,154.41,154.35,33.60428695]
[1745579734085,8.72428695,154.41,154.35,24.88]
[1745579734586,6.4744,154.41,154.35,24.88]
[1745579734785,10.63688695,154.43,154.35,24.88]
[1745579734985,10.63688695,154.43,154.37,6.4754]
[1745579735284,6.4744,154.41,154.35,24.88]
[1745579735486,10.63688695,154.43,154.37,6.4756]
[1745579735686,10.63688695,154.43,154.35,24.88]
[1745579735883,8.72428695,154.39,154.32,24.88]
[1745579736185,6.478,154.32,154.27,3.7689]
[1745579736481,24.88,154.35,154.27,12.49318695]
[1745579736682,24.88,154.35,154.31,6.4782]
[1745579737180,1.9948,154.38,154.31,8.72428695]
[1745579737381,8.72428695,154.35,154.3,25.68]
[1745579737583,8.72428695,154.35,154.28,1.8835]
[1745579737980,6.4773,154.34,154.3,6.4785]
[1745579738680,8.72428695,154.35,154.28,1.8835]
[1745579739085,6.4774,154.34,154.3,6.4787]
[1745579739285,6.4774,154.34,154.28,1.8835]
[1745579739588,6.4773,154.34,154.3,6.4785]
[1745579739981,8.72428695,154.33,154.27,25.68]
[1745579740178,6.4786,154.31,154.28,6.4794]
[1745579740380,8.72428695,154.31,154.25,466.62]
[1745579740578,8.72428695,154.29,154.22,5.8231]
[1745579740786,8.72428695,154.29,154.24,6.481]
[1745579740983,8.72428695,154.26,154.21,25.68]
[1745579741178,10.71988695,154.28,154.21,25.68]
[1745579741490,6.4803,154.27,154.23,6.4814]
[1745579741787,10.71988695,154.28,154.21,25.68]
[1745579741987,17.19968695,154.28,154.24,6.4812]
[1745579742486,8.72428695,154.26,154.21,6.4822]
[1745579742686,34.40428695,154.26,154.18,25.68]
[1745579743186,6.4809,154.25,154.21,6.4823]
[1745579743888,40.88478695,154.26,154.18,34.40428695]
[1745579745086,34.40428695,154.26,154.18,34.40428695]
[1745579745381,25.68,154.29,154.2,8.72428695]
[1745579745579,40.88338695,154.3,154.22,8.72428695]
[1745579745783,40.88338695,154.3,154.22,34.40428695]
[1745579745981,34.40428695,154.3,154.22,34.40428695]
[1745579746180,34.40428695,154.3,154.27,6.4797]
[1745579746491,34.40428695,154.3,154.22,34.40428695]
[1745579746991,6.4793,154.29,154.25,6.4806]
[1745579747187,34.40428695,154.3,154.22,34.40428695]
[1745579747490,6.4796,154.28,154.25,6.4809]
[1745579747690,34.40428695,154.3,154.25,6.4809]
[1745579747992,6.4797,154.28,154.24,6.4811]
[1745579748292,6.4797,154.28,154.22,25.68]
[1745579748793,6.4794,154.29,154.25,6.4807]
[1745579749195,8.72428695,154.3,154.22,34.40428695]
[1745579749393,15.20328695,154.3,154.26,6.4802]
[1745579749595,10.60148695,154.32,154.22,34.40428695]
[1745579749896,6.4779,154.32,154.26,8.72428695]
[1745579750095,6.4779,154.32,154.26,34.42428695]
[1745579750394,8.72428695,154.31,154.26,25.7]
[1745579750897,6.4789,154.3,154.23,25.7]
[1745579751395,6.4789,154.3,154.26,6.4802]
[1745579752395,6.4792,154.29,154.26,6.4802]
[1745579752595,6.4792,154.29,154.25,6.4807]
[1745579752895,6.4792,154.29,154.23,25.7]
[1745579753198,6.4792,154.29,154.24,6.4809]
[1745579753391,6.4792,154.29,154.23,25.7]
[1745579753798,6.4792,154.29,154.25,6.4806]
[1745579754898,6.4792,154.29,154.26,6.4804]
[1745579755299,6.4792,154.29,154.23,25.7]
[1745579755599,6.4796,154.28,154.25,6.4807]
[1745579756000,8.72428695,154.31,154.25,6.4807]
[1745579756193,6.4794,154.29,154.25,6.4807]
[1745579757101,6.4798,154.28,154.24,6.4811]
[1745579757698,15.20368695,154.29,154.25,6.4806]
[1745579758202,6.4801,154.27,154.24,6.4811]
[1745579758498,8.72428695,154.29,154.23,25.7]
[1745579759300,15.20378695,154.29,154.25,6.4806]
[1745579759800,15.20378695,154.29,154.26,6.4803]
[1745579760004,6.4795,154.29,154.26,6.4803]
[1745579760396,8.72428695,154.31,154.27,6.4799]
[1745579760397,6.4789,154.3,154.27,6.4799]
[1745579760602,6.4789,154.3,154.24,8.72428695]
[1745579760904,6.4786,154.31,154.28,6.4795]
[1745579761102,6.4786,154.31,154.24,8.72428695]
[1745579761300,14.52558695,154.32,154.24,8.72428695]
[1745579761502,14.52558695,154.32,154.26,6.4802]
[1745579761802,14.52558695,154.32,154.24,8.72428695]
[1745579761999,14.52558695,154.32,154.26,6.4803]
[1745579762301,8.72428695,154.3,154.23,25.7]
[1745579762502,6.4798,154.28,154.25,6.4808]
[1745579762897,6.4793,154.29,154.26,6.4804]
[1745579764404,15.20308695,154.3,154.27,6.4799]
[1745579764806,5.8013,154.32,154.24,8.72428695]
[1745579765103,25.7,154.33,154.26,8.72428695]
[1745579765507,8.72428695,154.35,154.26,8.72428695]
[1745579765508,8.72428695,154.35,154.3,6.4786]
[1745579765703,8.72428695,154.33,154.25,1.9616]
[1745579765904,8.72428695,154.29,154.23,25.7]
[1745579766104,8.72428695,154.29,154.2,8.72428695]
[1745579766299,8.72428695,154.29,154.21,25.7]
[1745579766501,6.4798,154.28,154.25,6.4808]
[1745579767303,15.20368695,154.29,154.26,6.4804]
[1745579767607,36.31368695,154.31,154.22,8.72428695]
[1745579767905,8.72428695,154.32,154.22,8.72428695]
[1745579768302,8.72428695,154.3,154.23,1.9365]
[1745579769308,6.4798,154.28,154.25,6.4807]
[1745579770809,6.4804,154.26,154.23,8.418]
[1745579771006,6.4804,154.26,154.23,1.9365]
[1745579771209,8.72428695,154.28,154.22,25.34]
[1745579771404,8.72428695,154.24,154.16,491.7]
[1745579771603,8.72428695,154.22,154.16,491.7]
[1745579771813,8.72428695,154.22,154.16,31.8246]
[1745579772007,8.72428695,154.22,154.16,25.34]
[1745579772408,15.20638695,154.22,154.16,25.34]
[1745579772913,15.20638695,154.22,154.18,6.4835]
[1745579773209,8.72428695,154.24,154.16,25.34]
[1745579773399,8.72428695,154.24,154.2,6.4827]
[1745579774108,8.72428695,154.24,154.16,34.06428695]
[1745579774712,6.4821,154.23,154.19,6.4831]
[1745579775008,8.72428695,154.24,154.16,25.34]
[1745579775211,8.72428695,154.22,154.17,6.4842]
[1745579775710,8.72428695,154.22,154.18,6.4838]
[1745579776606,8.72428695,154.22,154.17,6.4841]
[1745579776808,8.72428695,154.2,154.13,3.9585]
[1745579777016,8.72428695,154.2,154.11,8.72428695]
[1745579777017,25.36,154.19,154.11,8.72428695]
[1745579777313,8.72428695,154.2,154.16,6.4844]
[1745579777511,6.4826,154.21,154.13,8.72428695]
[1745579777809,6.4826,154.21,154.17,6.484]
[1745579778209,6.4831,154.2,154.16,6.4845]
[1745579778515,34.08428695,154.22,154.16,6.4845]
[1745579778813,34.08428695,154.22,154.14,25.36]
[1745579778814,6.484,154.18,154.14,6.4852]
[1745579779009,6.484,154.18,154.11,8.72428695]
[1745579779417,6.484,154.18,154.15,6.485]
[1745579780014,6.4843,154.17,154.11,8.72428695]
[1745579780215,8.72428695,154.18,154.1,34.08428695]
[1745579780515,15.20738695,154.2,154.16,6.4843]
[1745579780813,8.72428695,154.2,154.16,6.4843]
[1745579781509,8.72428695,154.2,154.15,6.4849]
[1745579781715,8.72428695,154.2,154.12,8.72428695]
[1745579781914,8.72428695,154.2,154.1,34.08428695]
[1745579782114,8.72428695,154.16,154.1,25.36]
[1745579782317,8.72428695,154.14,154.04,380.36]
[1745579782511,8.72428695,154.12,154.05,1.8777]
[1745579782711,34.08428695,154.14,154.05,10.60198695]
[1745579783108,34.08428695,154.14,154.09,6.4873]
[1745579783517,6.4866,154.12,154.05,10.60198695]
[1745579783715,15.21088695,154.12,154.08,6.4879]
[1745579783918,15.21088695,154.12,154.05,1.8777]
[1745579784113,6.4868,154.11,154.08,6.4877]
[1745579784308,8.72428695,154.12,154.05,1.8777]
[1745579784507,25.36,154.14,154.05,10.60198695]
[1745579784716,34.08428695,154.14,154.05,10.60198695]
[1745579784915,34.08428695,154.14,154.1,6.4872]
[1745579785617,6.4862,154.13,154.1,6.4872]
[1745579785814,6.4862,154.13,154.09,6.4874]
[1745579786013,34.08428695,154.14,154.09,6.4874]
[1745579786216,8.72428695,154.1,154.05,1.8777]
[1745579787111,8.72428695,154.1,154.07,6.4882]
[1745579787920,8.72428695,154.1,154.06,6.4887]
[1745579788420,8.72428695,154.1,154.07,6.4882]
[1745579789320,15.21168695,154.1,154.07,6.4882]
[1745579789519,15.21168695,154.1,154.05,1.8777]
[1745579790215,15.21168695,154.1,154.06,6.4886]
[1745579791023,15.21168695,154.1,154.07,6.4882]
[1745579792023,15.21168695,154.1,154.06,6.4887]
[1745579792323,8.72428695,154.08,154.02,25.36]
[1745579792524,8.72428695,154.08,154.04,6.4894]
[1745579792826,15.21258695,154.08,154.02,25.36]
[1745579793225,8.72428695,154.08,154.05,6.4891]
[1745579794924,6.4879,154.09,154.06,6.4887]
[1745579795624,6.4879,154.09,154.05,6.4891]
[1745579797326,6.4883,154.08,154.02,25.36]
[1745579797723,34.10428695,154.1,154.02,25.36]
[1745579797924,6.4881,154.08,154.04,6.4894]
[1745579798233,6.4881,154.08,154.02,25.36]
[1745579798425,6.4881,154.08,154.04,6.4894]
[1745579798728,8.72428695,154.06,154.02,25.36]
[1745579799027,6.4891,154.06,154.0,1.8489]
[1745579799228,3.8243,154.09,153.87,355.0]
[1745579799229,8.72428695,154.01,153.87,355.0]
[1745579799418,8.72428695,154.01,153.93,5.8084]
[1745579800124,15.21508695,154.02,153.97,6.4923]
[1745579800323,8.72428695,154.02,153.97,6.4923]
[1745579800524,8.72428695,154.02,153.93,14.53268695]
[1745579800828,6.4908,154.02,153.95,8.72428695]
[1745579801127,6.4908,154.02,153.98,6.4922]
[1745579801529,6.4908,154.02,153.95,8.72428695]
[1745579801725,6.4908,154.02,153.97,6.4922]
[1745579801925,6.491,154.01,153.97,6.4922]
[1745579802125,1.8953,154.08,153.97,8.72428695]
[1745579802329,8.72428695,154.04,153.96,26.04]
[1745579802530,6.4908,154.02,153.96,26.04]
[1745579802730,6.4908,154.02,153.98,6.492]
[1745579803230,6.4903,154.03,153.99,6.4918]
[1745579803828,8.72428695,154.04,153.96,26.04]
[1745579804228,8.72428695,154.04,154.01,6.4908]
[1745579805228,8.72428695,154.04,154.0,6.4912]
[1745579805528,15.21418695,154.04,154.0,6.4912]
[1745579805731,15.21418695,154.04,154.0,6.491]
[1745579806629,6.4899,154.04,154.01,6.4909]
[1745579806829,6.4895,154.05,154.01,6.4909]
[1745579807027,8.72428695,154.06,154.01,6.4909]
[1745579807532,6.4901,154.04,154.01,6.4909]
[1745579807927,8.72428695,154.06,154.01,6.4909]
[1745579808634,26.04,154.07,153.99,8.72428695]
[1745579808837,26.04,154.07,154.0,26.04]
[1745579809436,6.4895,154.05,154.0,26.04]
[1745579809738,26.04,154.07,154.0,26.04]
[1745579809937,8.72428695,154.06,154.0,26.04]
[1745579810137,6.4905,154.03,153.97,34.76428695]
[1745579810439,6.4905,154.03,153.99,6.4916]
[1745579810840,6.4906,154.02,153.99,6.4916]
[1745579811033,8.72428695,154.04,153.97,26.04]
[1745579811339,6.4912,154.01,153.97,26.04]
[1745579811538,8.72428695,154.04,153.98,6.4922]
[1745579811740,8.72428695,154.04,153.97,26.04]
[1745579812038,6.4909,154.02,153.97,26.04]
[1745579812534,6.4902,154.03,153.97,26.04]
[1745579812841,8.72428695,154.04,153.97,26.04]
[1745579813034,6.491,154.01,153.98,6.4921]
[1745579813240,8.72428695,154.04,153.97,26.04]
[1745579814235,6.4911,154.01,153.98,6.492]
[1745579815243,6.4915,154.0,153.97,32.5325]
[1745579815443,6.4915,154.0,153.97,6.4925]
[1745579816345,26.04,154.03,153.94,26.04]
[1745579816547,8.72428695,154.01,153.94,26.04]
[1745579816745,6.4916,154.0,153.97,6.4923]
[1745579817148,8.72428695,154.01,153.97,6.4923]
[1745579817748,8.72428695,153.99,153.93,3.8627]
[1745579818049,8.72428695,153.95,153.92,26.04]
[1745579818241,8.72428695,153.95,153.91,6.4949]
[1745579818437,8.72428695,153.95,153.89,26.04]
[1745579819046,6.4942,153.94,153.91,6.4951]
[1745579819244,8.72428695,153.95,153.89,26.04]
[1745579819547,6.4941,153.94,153.9,6.4953]
[1745579819850,8.72428695,153.93,153.89,26.04]
[1745579820146,8.72428695,153.93,153.9,6.4954]
[1745579820541,8.72428695,153.93,153.87,3.8834]
[1745579820746,8.72428695,153.91,153.86,26.04]
[1745579820946,8.72428695,153.89,153.83,26.06]
[1745579821350,8.72428695,153.89,153.86,6.497]
[1745579823246,8.72428695,153.89,153.87,6.4968]
[1745579824544,8.72428695,153.89,153.88,6.4964]
[1745579824752,34.78428695,153.93,153.83,34.78428695]
[1745579824951,6.4948,153.92,153.83,34.78428695]
[1745579825150,8.72428695,153.91,153.83,34.78428695]
[1745579825349,8.72428695,153.89,153.83,26.06]
[1745579825550,8.72428695,153.87,153.84,6.498]
[1745579825750,8.72428695,153.87,153.8,26.06]
[1745579826244,8.72428695,153.85,153.8,26.06]
[1745579826649,8.72428695,153.85,153.8,6.4995]
[1745579827653,8.72428695,153.85,153.77,28.0824]
[1745579828150,8.72428695,153.85,153.82,6.4987]
[1745579828451,8.72428695,153.87,153.78,8.72428695]
[1745579829352,8.72428695,153.87,153.77,36.80668695]
[1745579829552,8.72428695,153.85,153.77,28.0824]
[1745579829755,8.72428695,153.83,153.77,27.5624]
[1745579830049,8.72428695,153.85,153.77,36.28668695]
[1745579830352,6.4973,153.86,153.82,6.4988]
[1745579830655,8.72428695,153.88,153.79,8.72428695]
[1745579830950,6.4972,153.87,153.83,6.4985]
[1745579831654,6.4981,153.85,153.79,8.72428695]
[1745579831850,8.72428695,153.84,153.77,27.5624]
[1745579832555,15.22278695,153.84,153.79,6.5]
[1745579832751,8.72428695,153.84,153.79,6.5]
[1745579833059,15.22258695,153.84,153.8,6.4994]
[1745579833351,25.54,153.85,153.77,27.5624]
[1745579833554,6.4982,153.84,153.77,27.5624]
[1745579834556,6.4982,153.84,153.81,6.4994]
[1745579834857,8.72428695,153.82,153.74,25.54]
[1745579835053,8.72428695,153.82,153.76,6.5012]
[1745579835456,8.72428695,153.82,153.74,25.54]
[1745579835657,8.72428695,153.82,153.75,6.5018]
[1745579835856,6.5001,153.8,153.75,6.5018]
[1745579836456,6.5001,153.8,153.76,6.5015]
[1745579837354,6.4995,153.81,153.77,6.5009]
[1745579837657,8.72428695,153.82,153.74,25.54]
[1745579837858,25.54,153.85,153.74,25.54]
[1745579837859,8.72428695,153.84,153.75,8.72428695]
[1745579838258,6.4988,153.83,153.75,8.72428695]
[1745579838557,8.72428695,153.84,153.75,8.72428695]
[1745579839853,6.4992,153.82,153.78,6.5004]
[1745579841258,6.4994,153.81,153.77,6.5009]
[1745579841459,8.72428695,153.82,153.74,25.54]
[1745579841850,6.4997,153.81,153.74,25.54]
[1745579842655,6.4997,153.81,153.76,6.5012]
[1745579842958,8.72428695,153.78,153.65,467.92]
[1745579843257,8.72428695,153.8,153.71,8.72428695]
[1745579843456,8.72428695,153.8,153.72,27.5729]
[1745579843757,8.72428695,153.8,153.76,6.5013]
[1745579843958,8.72428695,153.8,153.72,27.5729]
[1745579844262,15.22438695,153.8,153.76,6.5015]
[1745579844657,6.5001,153.8,153.76,6.5015]
[1745579844864,25.54,153.81,153.73,8.72428695]
[1745579845155,8.72428695,153.83,153.73,8.72428695]
[1745579845857,6.4994,153.81,153.77,6.5008]
[1745579846056,1.8507,153.84,153.75,8.72428695]
[1745579846263,34.28428695,153.85,153.77,8.72428695]
[1745579846657,6.499,153.83,153.77,8.72428695]
[1745579847162,6.499,153.82,153.77,8.72428695]
[1745579847563,34.28428695,153.85,153.77,8.72428695]
[1745579847764,6.4988,153.83,153.79,6.5002]
[1745579848365,6.499,153.82,153.79,6.5002]
[1745579849466,6.4987,153.83,153.79,6.5002]
[1745579849761,34.28428695,153.85,153.79,6.5002]
[1745579849967,6.4989,153.83,153.79,6.5002]
[1745579850167,34.28428695,153.85,153.79,6.5002]
[1745579850567,6.4988,153.83,153.79,6.5002]
[1745579851368,6.4988,153.83,153.8,6.4998]
[1745579851666,25.56,153.85,153.77,8.72428695]
[1745579851869,25.56,153.85,153.8,6.4997]
[1745579852066,6.4984,153.84,153.8,6.4997]
[1745579852669,8.72428695,153.84,153.79,6.5]
[1745579852865,8.72428695,153.82,153.76,1.9983]
[1745579853168,8.72428695,153.8,153.73,25.56]
[1745579853369,6.5003,153.79,153.75,6.5019]
[1745579853564,8.72428695,153.8,153.73,25.56]
[1745579854370,6.5003,153.79,153.75,6.5019]
[1745579855571,6.5003,153.79,153.76,6.5014]
[1745579855867,6.5003,153.79,153.73,25.56]
[1745579856066,8.72428695,153.78,153.73,25.56]
[1745579856271,8.72428695,153.76,153.71,1.9523]
[1745579856471,6.5026,153.74,153.7,25.56]
[1745579856770,6.5026,153.74,153.7,32.0638]
[1745579856971,8.72428695,153.76,153.7,25.56]
[1745579857371,8.72428695,153.76,153.71,6.5034]
[1745579857571,8.72428695,153.74,153.7,25.56]
[1745579857772,8.72428695,153.74,153.67,5.8189]
[1745579858174,8.72428695,153.72,153.67,5.8189]
[1745579858474,8.72428695,153.72,153.67,12.3239]
[1745579858675,8.72428695,153.72,153.67,3.9036]
[1745579859172,15.22768695,153.72,153.68,6.5047]
[1745579859473,8.72428695,153.72,153.68,6.5047]
[1745579860371,15.22778695,153.72,153.68,6.5047]
[1745579860573,8.72428695,153.72,153.68,6.5047]
[1745579860873,8.72428695,153.72,153.69,6.5044]
[1745579861075,8.72428695,153.72,153.67,1.9775]
[1745579861274,8.72428695,153.72,153.66,25.56]
[1745579861474,8.72428695,153.72,153.68,6.5047]
[1745579861673,15.22768695,153.72,153.68,6.5047]
[1745579862076,8.72428695,153.72,153.63,31.1692]
[1745579862477,8.72428695,153.72,153.69,6.5043]
[1745579862678,15.22778695,153.72,153.63,31.1692]
[1745579862978,15.22778695,153.72,153.68,6.5047]
[1745579863477,8.72428695,153.72,153.63,31.1692]
[1745579863780,8.72428695,153.72,153.68,6.5046]
[1745579864075,15.22758695,153.72,153.63,31.1692]
[1745579864476,6.5037,153.71,153.63,31.1692]
[1745579864678,8.72428695,153.72,153.68,6.5046]
[1745579865281,8.72428695,153.72,153.67,6.5051]
[1745579865479,8.72428695,153.72,153.63,31.1692]
[1745579865676,15.22768695,153.72,153.63,31.1692]
[1745579866582,8.72428695,153.74,153.64,8.72428695]
[1745579866982,6.5028,153.73,153.64,8.72428695]
[1745579867183,6.5028,153.73,153.69,6.5042]
[1745579867883,8.72428695,153.72,153.68,6.5048]
[1745579868286,8.72428695,153.72,153.63,31.1692]
[1745579868486,6.5039,153.71,153.67,6.5051]
[1745579869188,6.504,153.71,153.67,6.5051]
[1745579869387,5.63461323,153.69,153.67,6.5051]
[1745579869584,5.63461323,153.68,153.67,6.5051]
[1745579870586,6.5033,153.72,153.65,5.63461323]
[1745579870785,5.63461323,153.69,153.65,5.63461323]
[1745579871186,29.478,153.75,153.67,6.5053]
[1745579871187,5.63461323,153.68,153.67,6.5053]
[1745579872887,5.63461323,153.7,153.68,6.5047]
[1745579874686,5.63461323,153.7,153.69,6.5045]
[1745579874989,5.63461323,153.72,153.68,5.63461323]
[1745579875190,5.63461323,153.72,153.69,6.5041]
[1745579875388,5.63461323,153.72,153.68,5.63461323]
[1745579876495,5.63461323,153.72,153.69,6.5044]
[1745579876693,5.63461323,153.72,153.68,5.63461323]
[1745579876884,5.63461323,153.73,153.69,5.63461323]
[1745579877087,5.63461323,153.73,153.68,5.63461323]
[1745579877583,5.63461323,153.73,153.71,6.5034]
[1745579879388,5.63461323,153.73,153.72,6.5032]
[1745579879790,5.63461323,153.73,153.69,5.63461323]
[1745579880390,5.63461323,153.73,153.71,6.5034]
[1745579880690,5.63461323,153.73,153.68,5.63461323]
[1745579880890,5.63461323,153.72,153.68,5.63461323]
[1745579881091,5.63461323,153.72,153.7,6.5038]
[1745579882591,5.63461323,153.72,153.71,6.5036]
[1745579882792,6.5025,153.74,153.71,6.5036]
[1745579883093,5.63461323,153.73,153.71,6.5036]
[1745579883293,5.63461323,153.72,153.67,25.24]
[1745579883492,5.63461323,153.68,153.64,25.24]
[1745579883687,5.63461323,153.67,153.64,25.24]
[1745579883888,5.63461323,153.68,153.64,25.24]
[1745579884294,5.63461323,153.68,153.66,6.5054]
[1745579885792,5.63461323,153.68,153.67,6.5053]
[1745579885995,5.63461323,153.68,153.64,25.24]
[1745579886493,5.63461323,153.68,153.66,6.5055]
[1745579887489,5.63461323,153.69,153.65,5.63461323]
[1745579887795,5.63461323,153.71,153.67,5.63461323]
[1745579887988,5.63461323,153.72,153.67,5.63461323]
[1745579888295,5.63461323,153.69,153.64,30.87461323]
[1745579888594,5.63461323,153.68,153.64,30.87461323]
[1745579889290,5.63461323,153.68,153.66,6.5055]
[1745579889695,5.63461323,153.68,153.64,30.87461323]
[1745579889895,5.63461323,153.67,153.64,25.24]
[1745579890794,5.63461323,153.67,153.65,6.5058]
[1745579890997,5.63461323,153.67,153.64,25.24]
[1745579891191,24.94,153.71,153.63,1.9414]
[1745579891395,5.63461323,153.66,153.64,6.5063]
[1745579891999,5.63461323,153.66,153.65,6.5062]
[1745579892601,5.63461323,153.67,153.65,6.5062]
[1745579893302,5.63461323,153.67,153.66,6.5057]
[1745579893596,5.63461323,153.67,153.63,1.9414]
[1745579893597,5.63461323,153.69,153.64,5.63461323]
[1745579895301,5.63461323,153.7,153.68,6.5049]
[1745579896101,5.63461323,153.7,153.67,6.5051]
[1745579897105,5.63461323,153.7,153.68,6.5048]
[1745579897299,5.63461323,153.69,153.68,6.5048]
[1745579898806,5.63461323,153.69,153.67,6.5051]
[1745579899000,5.63461323,153.68,153.65,5.63461323]
[1745579899201,5.63461323,153.68,153.64,5.63461323]
[1745579899501,5.63461323,153.68,153.63,1.9414]
[1745579899702,5.63461323,153.68,153.64,5.63461323]
[1745579900406,5.63461323,153.68,153.66,6.5055]
[1745579901301,5.63461323,153.67,153.63,1.9414]
[1745579901607,5.63461323,153.66,153.63,1.9414]
[1745579902007,5.63461323,153.66,153.65,6.5062]
[1745579902706,5.63461323,153.67,153.65,6.5062]
[1745579903206,5.63461323,153.67,153.66,6.5057]
[1745579905310,5.63461323,153.68,153.67,6.5053]
[1745579905510,5.63461323,153.69,153.67,6.5053]
[1745579907011,5.63461323,153.69,153.65,5.63461323]
[1745579907012,5.63461323,153.69,153.66,6.5055]
[1745579907308,5.63461323,153.68,153.66,6.5055]
[1745579907715,5.63461323,153.68,153.67,6.5053]
[1745579908009,5.63461323,153.68,153.64,5.63461323]
[1745579908313,5.63461323,153.68,153.66,6.5054]
[1745579908518,5.63461323,153.68,153.64,5.63461323]
[1745579910012,5.63461323,153.68,153.67,6.5053]
[1745579912212,5.63461323,153.68,153.66,6.5056]
[1745579913516,5.63461323,153.68,153.67,6.5052]
[1745579913715,5.63461323,153.68,153.64,5.63461323]
[1745579915719,5.63461323,153.68,153.66,6.5053]
[1745579918623,5.63461323,153.68,153.67,6.5053]
[1745579919626,5.63461323,153.69,153.67,6.5053]
[1745579919823,5.63461323,153.72,153.67,5.63461323]
[1745579920120,30.11461323,153.74,153.69,5.63461323]
[1745579920330,36.61701323,153.74,153.71,6.5033]
[1745579921119,30.11461323,153.74,153.71,6.5033]
[1745579922221,36.61701323,153.74,153.71,6.5033]
[1745579922726,30.11461323,153.74,153.71,6.5033]
[1745579923223,3.8378,153.79,153.73,5.63461323]
[1745579923427,5.63461323,153.79,153.75,5.63461323]
[1745579923824,5.63461323,153.79,153.76,6.5015]
[1745579924119,123.81739,153.8,153.77,5.63461323]
[1745579924120,92.83739,153.8,153.77,5.63461323]
[1745579924318,92.83739,153.8,153.77,12.13551323]
[1745579924520,92.83739,153.8,153.77,5.63461323]
[1745579925123,92.83739,153.8,153.79,6.5002]
[1745579927529,92.83739,153.8,153.78,12.13521323]
[1745579927732,92.83739,153.8,153.76,5.63461323]
[1745579928029,92.83739,153.8,153.77,6.501]
[1745579928932,92.83739,153.8,153.75,24.48]
[1745579928933,98.47200323,153.8,153.75,30.11461323]
[1745579929333,104.97190323,153.8,153.76,6.5015]
[1745579930329,98.47200323,153.8,153.75,24.48]
[1745579930534,98.47200323,153.8,153.76,5.63461323]
[1745579930932,92.83739,153.8,153.78,6.5004]
[1745579931733,92.83739,153.8,153.79,6.5002]
[1745579931933,24.46,153.86,153.79,5.63461323]
[1745579932131,12.13231323,153.85,153.81,12.13381323]
[1745579932433,12.13231323,153.85,153.81,5.63461323]
[1745579932737,24.46,153.86,153.82,5.63461323]
[1745579932937,5.63461323,153.88,153.83,5.63461323]
[1745579933137,5.63461323,153.87,153.83,5.63461323]
[1745579933338,5.63461323,153.87,153.84,6.4978]
[1745579933739,5.63461323,153.87,153.85,6.4977]
[1745579934533,5.63461323,153.87,153.83,5.63461323]
[1745579934738,5.63461323,153.87,153.86,6.4973]
[1745579934938,5.63461323,153.88,153.86,6.4973]
[1745579935940,5.63461323,153.88,153.85,6.4976]
[1745579936244,12.13111323,153.88,153.85,6.4976]
[1745579936845,24.46,153.89,153.84,5.63461323]
[1745579937042,5.63461323,153.88,153.84,5.63461323]